bitfinex/quotes_SOLUSD_20240714
["timestamp","ask_amount","ask_price","bid_price","bid_amount"]
[1720969512156,1.71158491,146.06,146.0,1.36926449]
[1720969512376,12.77158491,146.06,146.02,11.06]
[1720969512857,12.77158491,146.06,146.0,1.36926449]
[1720969512858,12.77184893,146.06,146.0,1.36947914]
[1720969513166,12.77184893,146.06,146.01,11.06]
[1720969513350,12.77184893,146.06,146.02,20.0]
[1720969513558,11.06,146.05,146.02,20.0]
[1720969513856,1.71208902,146.04,146.02,20.0]
[1720969514056,1.71208902,146.04,146.01,20.0]
[1720969514381,1.71208902,146.04,146.0,11.06]
[1720969514527,1.71208902,146.04,146.01,20.0]
[1720969514728,14.73821794,146.07,146.03,11.06]
[1720969514934,14.73821794,146.07,146.04,21.36933154]
[1720969515134,16.4498804,146.07,146.04,20.0]
[1720969515341,27.5098804,146.07,146.04,20.0]
[1720969515545,27.5098804,146.07,146.03,20.0]
[1720969516068,11.06,146.06,146.01,11.06]
[1720969516240,1.71188155,146.05,146.02,20.0]
[1720969516435,1.71188155,146.05,146.04,4.45053064]
[1720969517362,25.79821794,146.07,146.04,4.45053064]
[1720969518149,6.3321,146.04,145.94,16.1439]
[1720969518351,6.3321,146.04,145.85,32.17145242]
[1720969518352,11.06,145.99,145.9,22.1746]
[1720969518532,6.3321,145.97,145.87,6.0307]
[1720969518738,1.71294523,145.96,145.88,44.24]
[1720969518990,1.71294523,145.96,145.93,11.06]
[1720969519142,8.0450145,145.97,145.94,11.06]
[1720969520258,8.0450145,145.97,145.88,44.24]
[1720969520259,8.0450145,145.97,145.93,11.06]
[1720969520562,19.1050145,145.97,145.93,11.06]
[1720969520764,19.1050145,145.97,145.87,6.0307]
[1720969520956,11.06,145.96,145.92,11.06]
[1720969521273,1.71313011,145.95,145.87,6.0307]
[1720969521446,12.77313011,145.95,145.9,11.06]
[1720969522754,12.77313011,145.95,145.91,11.06]
[1720969522960,1.71313011,145.95,145.91,11.06]
[1720969523165,12.77336215,145.96,145.91,11.06]
[1720969523553,12.77336215,145.96,145.92,11.06]
[1720969524062,12.77336215,145.96,145.88,11.06]
[1720969524252,1.71336215,145.96,145.89,20.0]
[1720969524850,1.71336215,145.96,145.87,20.0]
[1720969525365,1.71336215,145.96,145.84,22.14]
[1720969525672,46.71336215,145.96,145.84,22.14]
[1720969526050,46.71336215,145.96,145.85,1.37094645]
[1720969526250,46.71336215,145.96,145.86,1.37085245]
[1720969528270,46.71336215,145.96,145.85,20.0]
[1720969528576,6.0767,145.95,145.85,20.0]
[1720969528751,1.71381312,145.94,145.85,20.0]
[1720969529350,16.148,145.93,145.85,20.0]
[1720969529553,1.71387166,145.92,145.83,20.0]
[1720969531277,1.71387166,145.92,145.83,20.40373336]
[1720969531472,1.71387166,145.92,145.84,20.0]
[1720969531674,1.71387166,145.92,145.83,0.40373336]
[1720969532259,1.71387166,145.92,145.83,1.37123971]
[1720969533448,1.71387166,145.92,145.83,46.37123971]
[1720969533665,1.71387166,145.92,145.84,20.0]
[1720969533851,1.71387166,145.92,145.85,1.37097631]
[1720969534073,1.71387166,145.92,145.86,1.37097631]
[1720969534255,1.71387166,145.92,145.84,21.37097682]
[1720969534456,1.71387166,145.92,145.85,20.0]
[1720969534676,1.71387166,145.92,145.83,1.37097682]
[1720969535454,1.71387166,145.92,145.83,46.37097682]
[1720969535655,1.71387166,145.92,145.84,20.0]
[1720969536279,1.71387166,145.92,145.83,1.37097682]
[1720969536460,1.71387166,145.92,145.82,20.0]
[1720969536461,1.71387166,145.92,145.82,21.37097682]
[1720969538667,6.0767,145.91,145.8,22.14]
[1720969538872,1.7142069,145.9,145.8,22.14]
[1720969539085,17.86234843,145.89,145.77,8.25570778]
[1720969539262,6.0767,145.88,145.76,1.37177729]
[1720969539458,46.71476989,145.87,145.77,1.37181591]
[1720969539883,1.71476989,145.87,145.77,1.37181591]
[1720969540381,1.71476989,145.87,145.76,1.37157028]
[1720969540584,1.71476989,145.87,145.77,1.3715951]
[1720969541686,1.71476989,145.87,145.76,65.0]
[1720969541979,1.71476989,145.87,145.76,20.0]
[1720969542179,46.71476989,145.87,145.76,20.0]
[1720969542482,1.71476989,145.87,145.76,20.0]
[1720969542779,16.148,145.86,145.75,37.3436]
[1720969542981,1.71485342,145.85,145.75,22.14]
[1720969543876,6.0767,145.84,145.75,22.14]
[1720969544077,1.71486539,145.83,145.76,20.0]
[1720969544278,1.71486564,145.82,145.73,20.0]
[1720969544579,1.71486564,145.82,145.74,45.0]
[1720969544784,1.71486564,145.82,145.72,30.39570778]
[1720969545283,16.148,145.81,145.71,0.2]
[1720969545581,1.71537358,145.8,145.71,1.57189739]
[1720969546154,6.0767,145.79,145.71,1.57189739]
[1720969546360,1.71537149,145.78,145.71,1.57189739]
[1720969546783,1.71537149,145.78,145.71,0.2]
[1720969547187,1.71537149,145.78,145.71,1.57221734]
[1720969547574,1.71537149,145.78,145.71,0.2]
[1720969547887,1.71537149,145.78,145.71,20.2]
[1720969548075,15.0032,145.77,145.72,20.0]
[1720969548280,1.71556687,145.76,145.71,0.2]
[1720969551480,46.71556687,145.76,145.71,0.2]
[1720969551983,6.5815,145.75,145.71,0.2]
[1720969552192,1.7160643,145.74,145.71,0.2]
[1720969552373,1.71606607,145.73,145.71,0.2]
[1720969552870,15.0032,145.72,145.71,0.2]
[1720969553187,1.8816,145.71,145.63,0.8517224]
[1720969553399,1.71640443,145.7,145.64,23.51312354]
[1720969553690,1.8816,145.71,145.64,23.51312354]
[1720969553691,3.59758867,145.71,145.64,23.51312354]
[1720969553871,1.71601431,145.74,145.64,23.51312354]
[1720969554192,1.71587386,145.73,145.66,22.14]
[1720969554693,1.71587386,145.73,145.63,0.8517224]
[1720969554863,15.0032,145.72,145.63,0.8517224]
[1720969555063,1.71640781,145.71,145.63,0.8517224]
[1720969555271,1.71640816,145.7,145.63,0.8517224]
[1720969556485,6.5815,145.69,145.63,0.8517224]
[1720969556691,1.71673589,145.68,145.63,0.8517224]
[1720969556875,15.0032,145.66,145.63,0.8517224]
[1720969557193,1.71706603,145.65,145.63,0.8517224]
[1720969557389,1.71676065,145.64,145.63,0.8517224]
[1720969557591,1.71676068,145.68,145.63,0.8517224]
[1720969557771,1.71652547,145.67,145.63,0.8517224]
[1720969557970,1.71648122,145.68,145.63,0.8517224]
[1720969558171,1.71655118,145.67,145.63,0.8517224]
[1720969558776,1.71656078,145.68,145.63,0.8517224]
[1720969558963,1.71651333,145.68,145.63,22.22493306]
[1720969559167,1.71651333,145.67,145.63,2.22493306]
[1720969559393,1.71651333,145.67,145.63,20.8517224]
[1720969559788,1.71651333,145.67,145.63,21.55964089]
[1720969559995,1.71646645,145.68,145.63,22.22489556]
[1720969560195,21.5847,145.73,145.63,22.22489556]
[1720969560370,1.71624403,145.72,145.63,20.8517224]
[1720969561186,1.71624403,145.72,145.63,0.8517224]
[1720969561468,23.85624403,145.72,145.63,0.8517224]
[1720969561684,46.71624403,145.72,145.63,0.8517224]
[1720969563092,1.71624403,145.72,145.63,0.8517224]
[1720969563488,1.71624403,145.72,145.63,2.22485891]
[1720969563680,1.71624403,145.72,145.63,0.8517224]
[1720969564599,46.71624403,145.72,145.63,0.8517224]
[1720969564771,78.94624403,145.72,145.63,0.8517224]
[1720969565172,10.0,145.7,145.63,0.8517224]
[1720969565372,46.71707222,145.69,145.63,0.8517224]
[1720969566480,15.8272,145.68,145.63,0.8517224]
[1720969566682,46.71708351,145.67,145.63,0.8517224]
[1720969566919,6.0109,145.66,145.63,0.8517224]
[1720969567079,46.71729074,145.65,145.63,0.8517224]
[1720969567278,1.71731972,145.64,145.63,0.8517224]
[1720969569278,1.71731972,145.64,145.47,2.69065413]
[1720969569279,6.0109,145.62,145.47,22.23]
[1720969569479,6.0109,145.62,145.5,22.23]
[1720969569673,45.0,145.65,145.52,21.9497]
[1720969569880,45.0,145.65,145.52,44.1797]
[1720969570086,55.0,145.65,145.52,44.1797]
[1720969570600,45.0,145.65,145.53,20.0]
[1720969571101,1.71762692,145.64,145.53,20.0]
[1720969571306,1.71762692,145.64,145.52,22.23]
[1720969571473,1.71762692,145.64,145.49,15.8806]
[1720969571474,10.0,145.62,145.49,15.8806]
[1720969571782,46.71800755,145.61,145.49,15.8806]
[1720969571984,1.71800886,145.6,145.49,15.8806]
[1720969573409,11.71800886,145.6,145.49,15.8806]
[1720969573589,45.0,145.59,145.49,15.8806]
[1720969573806,7.72919328,145.58,145.49,15.8806]
[1720969574000,46.71828101,145.57,145.49,15.8806]
[1720969574380,46.71828101,145.57,145.5,20.0]
[1720969575188,1.71828101,145.57,145.5,21.3745115]
[1720969575387,6.0109,145.62,145.5,43.6045115]
[1720969575589,46.71799266,145.61,145.5,43.6045115]
[1720969575898,46.71799266,145.61,145.5,43.6345115]
[1720969576297,1.71799266,145.61,145.52,1.37432258]
[1720969576493,1.71799266,145.61,145.5,43.63415678]
[1720969576701,1.71799266,145.61,145.5,42.26]
[1720969577711,46.71799266,145.61,145.5,42.26]
[1720969578291,46.71799266,145.61,145.51,1.57437556]
[1720969578606,1.71799266,145.61,145.51,1.57437556]
[1720969578916,1.71799266,145.61,145.51,0.2]
[1720969579303,1.71799266,145.61,145.51,1.57436809]
[1720969579701,46.71799266,145.61,145.51,1.57436809]
[1720969580014,46.71799266,145.61,145.51,0.2]
[1720969580383,46.71799266,145.61,145.51,1.34921469]
[1720969581389,46.71799266,145.61,145.51,0.2]
[1720969585818,46.71799266,145.61,145.51,1.57429966]
[1720969587099,46.71799266,145.61,145.51,0.2]
[1720969588522,10.0,145.6,145.51,0.2]
[1720969588829,15.6895,145.58,145.51,0.2]
[1720969589001,46.71837555,145.57,145.51,0.2]
[1720969589901,6.026,145.56,145.51,0.2]
[1720969590100,46.71842872,145.55,145.51,0.2]
[1720969590315,1.71842755,145.54,145.51,0.2]
[1720969594320,15.6895,145.53,145.51,0.2]
[1720969594504,46.71896734,145.52,145.51,0.2]
[1720969594710,45.0,145.52,145.51,0.2]
[1720969594935,0.6298,145.51,145.48,0.8517224]
[1720969595303,0.6298,145.55,145.48,0.8517224]
[1720969596718,1.7186173,145.54,145.48,0.8517224]
[1720969599922,1.71824867,145.53,145.49,6.0621]
[1720969600107,1.71821416,145.58,145.49,6.0621]
[1720969600301,1.71815485,145.57,145.49,6.0621]
[1720969601738,1.71815485,145.57,145.48,0.8517224]
[1720969601922,1.71815485,145.57,145.48,20.8517224]
[1720969603032,1.71815485,145.57,145.48,0.8517224]
[1720969604340,10.0,145.56,145.48,0.8517224]
[1720969604638,46.71866817,145.55,145.48,0.8517224]
[1720969604829,1.71862926,145.54,145.48,0.8517224]
[1720969605035,7.74462926,145.54,145.48,0.8517224]
[1720969605227,65.0,145.53,145.48,0.8517224]
[1720969605434,1.71900168,145.52,145.48,0.8517224]
[1720969605618,1.71864689,145.51,145.48,0.8517224]
[1720969609132,46.71864689,145.51,145.48,0.8517224]
[1720969610712,78.97864689,145.51,145.48,0.8517224]
[1720969611628,78.97864689,145.51,145.48,0.70075199]
[1720969613126,1.71864689,145.51,145.48,0.70075199]
[1720969614518,46.71864689,145.51,145.48,0.70075199]
[1720969614838,56.71864689,145.51,145.48,0.70075199]
[1720969616320,46.71864689,145.51,145.48,0.70075199]
[1720969616731,10.0,145.5,145.48,0.70075199]
[1720969616939,46.71864689,145.49,145.48,0.70075199]
[1720969617137,45.0,145.49,145.48,0.70075199]
[1720969619122,45.0,145.49,145.41,0.2]
[1720969619343,1.0178949,145.48,145.41,0.2]
[1720969619556,1.0178949,145.48,145.39,10.3162]
[1720969621053,10.0,145.47,145.39,10.3162]
[1720969621235,46.0178949,145.46,145.39,10.3162]
[1720969621434,1.0178949,145.45,145.39,10.3162]
[1720969623427,1.0178949,145.49,145.39,10.3162]
[1720969623628,1.0178949,145.48,145.39,10.3162]
[1720969623822,11.0178949,145.48,145.39,10.3162]
[1720969624449,1.0178949,145.48,145.39,10.3162]
[1720969624747,1.0178949,145.47,145.39,10.3162]
[1720969624929,46.0178949,145.47,145.39,10.3162]
[1720969627253,46.0178949,145.47,145.36,22.26]
[1720969627254,10.0,145.44,145.35,15.8567]
[1720969627555,46.0178949,145.43,145.35,15.8567]
[1720969627853,1.0178949,145.42,145.35,15.8567]
[1720969628152,33.2778949,145.42,145.35,15.8567]
[1720969628450,45.0,145.41,145.34,0.8517224]
[1720969628653,10.0,145.39,145.34,0.8517224]
[1720969628954,1.0178949,145.38,145.34,0.8517224]
[1720969629130,46.0178949,145.38,145.34,0.8517224]
[1720969629330,16.2083,145.36,145.34,0.8517224]
[1720969629633,74.8144949,145.38,145.34,0.8517224]
[1720969629634,46.0178949,145.35,145.34,0.8517224]
[1720969629952,1.0178949,145.35,145.34,0.8517224]
[1720969630152,1.0178949,145.39,145.34,0.8517224]
[1720969630350,10.0,145.38,145.34,0.8517224]
[1720969630558,46.0178949,145.37,145.34,0.8517224]
[1720969630851,1.0178949,145.36,145.31,0.2]
[1720969631039,10.0,145.35,145.31,0.2]
[1720969631242,46.0178949,145.34,145.31,0.2]
[1720969631752,10.0,145.33,145.31,0.2]
[1720969631951,46.0178949,145.32,145.31,0.2]
[1720969632851,21.7664,145.31,145.2,0.8517224]
[1720969633150,68.2778949,145.32,145.22,6.6036]
[1720969633151,46.0178949,145.3,145.22,6.6036]
[1720969633344,1.0178949,145.29,145.22,6.6036]
[1720969634741,1.0178949,145.29,145.18,19.9153224]
[1720969636052,6.5366,145.28,145.17,15.8567]
[1720969636252,46.0178949,145.27,145.17,15.8567]
[1720969636458,1.0178949,145.26,145.17,15.8567]
[1720969636764,1.0178949,145.26,145.19,8.95092256]
[1720969637337,11.0178949,145.26,145.19,8.95092256]
[1720969637541,45.0,145.25,145.19,8.95092256]
[1720969637744,1.0178949,145.24,145.19,8.95092256]
[1720969637957,1.0178949,145.23,145.19,8.95092256]
[1720969640152,1.0178949,145.23,145.17,15.8567]
[1720969640565,1.0178949,145.26,145.17,15.8567]
[1720969641665,10.0,145.25,145.17,15.8567]
[1720969641845,1.0178949,145.24,145.17,15.8567]
[1720969642041,1.0178949,145.23,145.15,15.55452256]
[1720969643153,1.0178949,145.23,145.15,8.95092256]
[1720969645679,1.0178949,145.23,145.16,21.37787126]
[1720969645856,1.0178949,145.22,145.16,20.0]
[1720969646052,1.0178949,145.26,145.16,20.0]
[1720969647351,1.0178949,145.26,145.18,21.7298]
[1720969647558,1.0178949,145.27,145.2,22.26]
[1720969647864,1.0178949,145.31,145.21,1.37707619]
[1720969648070,1.0178949,145.31,145.24,15.7239]
[1720969648284,1.0178949,145.3,145.25,1.37672968]
[1720969648486,1.0178949,145.36,145.24,17.10067165]
[1720969648691,1.0178949,145.35,145.24,15.7239]
[1720969648875,11.0178949,145.35,145.24,15.7239]
[1720969650181,45.0,145.34,145.24,17.10088096]
[1720969650355,32.26,145.37,145.24,17.10088096]
[1720969650356,1.0178949,145.33,145.24,17.10088096]
[1720969650560,1.0178949,145.32,145.25,42.26]
[1720969650774,1.0178949,145.37,145.26,1.37661579]
[1720969651372,1.0178949,145.37,145.25,42.26]
[1720969651782,1.0178949,145.37,145.25,43.63661801]
[1720969652001,11.0178949,145.37,145.25,42.26]
[1720969652285,23.2778949,145.37,145.26,1.37687238]
[1720969652787,23.2778949,145.37,145.25,21.3766932]
[1720969653165,45.0,145.36,145.25,21.3766932]
[1720969653490,1.0178949,145.35,145.25,20.0]
[1720969654968,1.0178949,145.35,145.24,15.7239]
[1720969654969,10.0,145.34,145.24,15.7239]
[1720969655179,46.0178949,145.33,145.24,15.7239]
[1720969655380,1.0178949,145.32,145.24,15.7239]
[1720969655892,1.0178949,145.32,145.21,22.26]
[1720969656084,1.0178949,145.32,145.22,20.0]
[1720969656466,1.0178949,145.32,145.21,22.26]
[1720969656999,1.0178949,145.32,145.21,23.63708315]
[1720969657366,1.0178949,145.32,145.23,22.26]
[1720969657580,1.0178949,145.32,145.24,1.37677279]
[1720969657790,1.0178949,145.36,145.26,22.26]
[1720969657966,1.0178949,145.35,145.27,21.37661627]
[1720969658464,1.0178949,145.35,145.27,37.10051627]
[1720969659087,1.0178949,145.34,145.27,37.10051627]
[1720969659385,1.0178949,145.37,145.27,37.10051627]
[1720969659570,1.0178949,145.37,145.29,22.26]
[1720969659768,1.0178949,145.37,145.3,21.37618647]
[1720969660889,22.2179,145.42,145.31,22.26]
[1720969660890,1.0178949,145.41,145.31,22.26]
[1720969661068,1.0178949,145.41,145.32,20.0]
[1720969662788,1.0178949,145.41,145.33,23.63602926]
[1720969662966,1.0178949,145.41,145.34,20.0]
[1720969664175,1.0178949,145.41,145.35,1.37591415]
[1720969665412,1.0178949,145.41,145.34,20.0]
[1720969665903,7.6717949,145.46,145.35,17.0997272]
[1720969666080,1.0178949,145.45,145.37,22.26]
[1720969666412,1.0178949,145.45,145.38,20.0]
[1720969667024,1.0178949,145.45,145.38,20.59593703]
[1720969667297,1.0178949,145.45,145.38,20.0]
[1720969669171,1.0178949,145.45,145.38,21.37546786]
[1720969669378,1.0178949,145.47,145.39,22.26]
[1720969669599,1.0178949,145.47,145.4,21.3752354]
[1720969670381,1.0178949,145.47,145.41,1.37507669]
[1720969670585,1.0178949,145.47,145.4,20.0]
[1720969670883,1.0178949,145.47,145.38,22.26]
[1720969671197,1.0178949,145.47,145.39,21.37537746]
[1720969671797,1.0178949,145.46,145.39,21.37537746]
[1720969671980,1.2178949,145.49,145.39,21.37537746]
[1720969672503,1.2178949,145.49,145.39,20.0]
[1720969673200,1.2178949,145.49,145.39,21.3753482]
[1720969673406,46.2178949,145.49,145.39,21.3753482]
[1720969673784,46.2178949,145.49,145.39,20.0]
[1720969676880,46.2178949,145.49,145.37,20.0]
[1720969677498,46.2178949,145.49,145.38,23.63551584]
[1720969677703,46.2178949,145.49,145.39,20.0]
[1720969678384,46.2178949,145.49,145.39,21.37532555]
[1720969678702,46.2178949,145.49,145.4,1.37541007]
[1720969678891,46.2178949,145.49,145.39,21.37532734]
[1720969679096,46.2178949,145.49,145.39,20.0]
[1720969680307,46.2178949,145.49,145.37,20.0]
[1720969680503,1.0178949,145.48,145.4,22.26]
[1720969680708,1.0178949,145.48,145.41,20.0]
[1720969682805,6.3668,145.46,145.34,15.9655]
[1720969682991,46.0178949,145.45,145.32,22.26]
[1720969684890,46.0178949,145.45,145.33,20.0]
[1720969685618,46.0178949,145.45,145.34,1.37591037]
[1720969685821,46.0178949,145.45,145.31,15.9655]
[1720969685822,6.3668,145.43,145.31,15.9655]
[1720969686021,46.0178949,145.42,145.31,15.9655]
[1720969686729,46.0178949,145.42,145.29,22.26]
[1720969687027,46.0178949,145.42,145.3,20.0]
[1720969687188,46.0178949,145.42,145.29,22.26]
[1720969687615,31.5786,145.41,145.28,1.37622303]
[1720969687815,10.0,145.39,145.27,40.16357227]
[1720969688025,6.0611,145.37,145.27,1.37637227]
[1720969688312,6.0611,145.37,145.25,22.26]
[1720969688313,1.0178949,145.36,145.25,22.26]
[1720969688514,1.0178949,145.35,145.25,22.26]
[1720969688720,15.5175,145.34,145.25,22.26]
[1720969689020,1.0178949,145.33,145.25,22.26]
[1720969689321,1.0178949,145.32,145.25,22.26]
[1720969689614,1.0178949,145.32,145.26,20.0]
[1720969689806,1.0178949,145.32,145.25,22.26]
[1720969690327,1.0178949,145.32,145.26,1.37676715]
[1720969691004,1.0178949,145.32,145.26,21.37676715]
[1720969691509,15.5175,145.34,145.26,21.37676715]
[1720969691510,1.0178949,145.33,145.26,21.37676715]
[1720969691713,15.5175,145.34,145.26,20.0]
[1720969691714,1.0178949,145.32,145.26,20.0]
[1720969691897,1.0178949,145.32,145.27,1.37663888]
[1720969692097,1.0178949,145.32,145.26,20.0]
[1720969692716,1.0178949,145.31,145.26,20.92786529]
[1720969693009,1.0178949,145.33,145.27,20.92780141]
[1720969693197,1.0178949,145.32,145.27,1.3766086]
[1720969693412,1.0178949,145.32,145.26,20.0]
[1720969693635,6.0611,145.37,145.27,1.37656226]
[1720969693832,1.0178949,145.36,145.27,68.63656226]
[1720969694009,1.0178949,145.36,145.28,20.0]
[1720969694428,1.0178949,145.36,145.29,1.37631728]
[1720969695935,1.0178949,145.36,145.28,20.0]
[1720969696433,1.0178949,145.36,145.28,21.37634714]
[1720969697235,1.0178949,145.36,145.28,20.0]
[1720969697432,1.0178949,145.36,145.27,22.26]
[1720969697616,1.0178949,145.36,145.23,16.5272]
[1720969697813,1.0178949,145.36,145.24,22.26]
[1720969698020,1.0178949,145.36,145.24,23.6366168]
[1720969699242,1.0178949,145.36,145.25,20.0]
[1720969699618,1.0178949,145.36,145.25,21.37668209]
[1720969699918,1.0178949,145.36,145.26,1.37644866]
[1720969700929,1.0178949,145.36,145.27,22.26]
[1720969701139,1.0178949,145.36,145.28,20.0]
[1720969703845,1.0178949,145.36,145.29,1.37633833]
[1720969704161,1.0178949,145.36,145.28,20.0]
[1720969706330,1.0178949,145.36,145.26,20.0]
[1720969707151,1.0178949,145.36,145.25,22.26]
[1720969707650,1.0178949,145.36,145.23,16.5272]
[1720969707853,11.0178949,145.36,145.23,16.5272]
[1720969708959,11.0178949,145.36,145.24,1.37671743]
[1720969709143,16.3843,145.35,145.24,1.37671743]
[1720969709449,1.0178949,145.34,145.24,21.37671743]
[1720969711951,6.0591,145.33,145.24,20.0]
[1720969712252,1.0178949,145.32,145.23,20.0]
[1720969713254,1.0178949,145.32,145.22,22.26]
[1720969713751,1.0178949,145.32,145.23,0.65415665]
[1720969713949,1.0178949,145.32,145.24,1.37675487]
[1720969714336,1.0178949,145.32,145.22,22.26]
[1720969714533,1.0178949,145.32,145.23,20.0]
[1720969715660,1.0178949,145.32,145.24,1.00555226]
[1720969717951,1.0178949,145.32,145.25,1.01772809]
[1720969718261,1.0178949,145.32,145.25,22.26]
[1720969718466,1.0178949,145.32,145.26,21.37652186]
[1720969718959,1.0178949,145.32,145.26,20.0]
[1720969719343,1.0178949,145.32,145.27,1.37659484]
[1720969719541,1.0178949,145.32,145.24,21.37655681]
[1720969719860,1.0178949,145.32,145.24,20.0]
[1720969720050,1.0178949,145.32,145.24,21.3765604]
[1720969721163,1.0178949,145.32,145.24,1.3765604]
[1720969722261,1.0178949,145.32,145.24,21.3765604]
[1720969724846,1.0178949,145.32,145.24,20.0]
[1720969725048,1.0178949,145.32,145.22,20.0]
[1720969725258,15.2535,145.31,145.22,20.0]
[1720969725468,1.0178949,145.3,145.22,20.0]
[1720969725657,1.0178949,145.29,145.22,20.0]
[1720969726670,1.0178949,145.3,145.22,20.0]
[1720969726968,1.0178949,145.29,145.22,20.0]
[1720969727846,1.0178949,145.3,145.22,20.0]
[1720969728048,1.0178949,145.29,145.22,20.0]
[1720969728671,1.0178949,145.29,145.23,1.37677188]
[1720969728972,1.0178949,145.28,145.22,20.0]
[1720969729151,46.0178949,145.3,145.22,20.0]
[1720969729358,1.0178949,145.29,145.22,20.0]
[1720969730446,1.0178949,145.29,145.25,11.17]
[1720969732369,12.1878949,145.29,145.24,11.17]
[1720969732963,17.3605,145.28,145.17,16.4104]
[1720969733162,1.0178949,145.27,145.23,11.17]
[1720969733359,1.0178949,145.26,145.23,11.17]
[1720969733559,1.0178949,145.27,145.24,11.17]
[1720969733756,1.0178949,145.27,145.25,11.17]
[1720969733978,1.0178949,145.27,145.24,11.17]
[1720969735278,7.2083949,145.28,145.25,1.3764731]
[1720969735456,15.2535,145.31,145.27,11.17]
[1720969735650,15.2535,145.31,145.3,11.17]
[1720969735959,6.1905,145.32,145.28,1.37648551]
[1720969736176,6.1905,145.32,145.3,11.17]
[1720969738279,6.1905,145.32,145.26,1.37642315]
[1720969738484,6.1905,145.32,145.26,21.37642315]
[1720969739483,21.5027,145.35,145.27,22.33]
[1720969739686,21.5027,145.35,145.28,21.37618187]
[1720969739888,21.5027,145.39,145.3,22.33]
[1720969740184,1.0178949,145.38,145.31,21.37601949]
[1720969740381,1.0178949,145.38,145.31,20.0]
[1720969740997,1.0178949,145.38,145.28,21.23964561]
[1720969741159,1.0178949,145.38,145.29,45.0]
[1720969741360,1.0178949,145.38,145.3,21.23986252]
[1720969741572,1.0178949,145.38,145.3,37.65026252]
[1720969741891,21.5027,145.39,145.32,22.33]
[1720969742187,1.0178949,145.38,145.33,20.0]
[1720969742388,1.0178949,145.38,145.33,21.3758105]
[1720969742765,1.0178949,145.38,145.31,21.3759662]
[1720969743570,21.5027,145.39,145.31,21.3759662]
[1720969743885,21.5027,145.39,145.32,22.33]
[1720969744069,1.0178949,145.38,145.33,21.37582213]
[1720969744662,21.5027,145.39,145.33,21.37582213]
[1720969746298,6.1905,145.39,145.33,21.37582213]
[1720969746690,15.3122,145.42,145.35,22.33]
[1720969746869,15.3122,145.42,145.36,21.37554041]
[1720969747208,6.4564,145.43,145.36,21.37554041]
[1720969747374,6.4564,145.43,145.37,45.0]
[1720969747695,1.0178949,145.45,145.38,21.37529468]
[1720969749365,1.0178949,145.45,145.38,20.0]
[1720969749762,1.0178949,145.45,145.39,1.03771845]
[1720969749989,1.0178949,145.45,145.4,1.03764708]
[1720969750683,1.0178949,145.45,145.39,1.37529556]
[1720969751288,1.0178949,145.45,145.38,20.0]
[1720969751591,46.0178949,145.45,145.36,20.0]
[1720969751973,1.0178949,145.45,145.37,1.375496]
[1720969752381,46.0178949,145.45,145.36,1.3754855]
[1720969752568,46.0178949,145.45,145.3,23.0724]
[1720969752569,46.0178949,145.45,145.33,23.70562178]
[1720969753192,46.0178949,145.45,145.34,45.0]
[1720969753570,46.0178949,145.45,145.35,1.37552812]
[1720969753976,46.0178949,145.45,145.35,21.37552812]
[1720969754992,1.0178949,145.45,145.35,1.37552812]
[1720969755298,1.0178949,145.45,145.35,45.0]
[1720969755475,46.0178949,145.45,145.36,20.0]
[1720969755675,1.0178949,145.45,145.37,1.37542866]
[1720969756090,1.0178949,145.45,145.34,20.0]
[1720969756281,1.0178949,145.45,145.35,46.37546747]
[1720969756489,1.0178949,145.45,145.36,20.0]
[1720969756685,1.0178949,145.45,145.37,1.3754359]
[1720969756996,1.0178949,145.45,145.37,1.3754556]
[1720969757212,46.0178949,145.45,145.37,1.3754556]
[1720969757693,1.0178949,145.45,145.37,1.3754556]
[1720969758001,1.0178949,145.45,145.34,20.0]
[1720969758170,46.0178949,145.45,145.39,11.15]
[1720969758377,11.15,145.44,145.39,11.15]
[1720969758597,1.0178949,145.43,145.39,11.15]
[1720969758984,1.0178949,145.43,145.4,11.15]
[1720969759476,1.0178949,145.44,145.4,11.15]
[1720969760091,46.0178949,145.44,145.39,11.15]
[1720969760285,12.1678949,145.44,145.39,11.15]
[1720969761104,11.15,145.43,145.34,20.0]